fUSD/lending_fUSD_20260513
["ID","MTS","AMOUNT","RATE_DAILY","PERIOD"]
[422187661,1778665842000,-2721.62,0.00023881,2]
[422187674,1778665842000,-329.35,0.00024174,2]
[422187677,1778665842000,-157.59540858,0.000245,2]
[422187675,1778665842000,-712.7,0.00024324,2]
[422187676,1778665842000,-159.0,0.00024488,3]
[422187678,1778665842000,-496.39946358,0.00024512,2]
[422187671,1778665842000,-496.38,0.00024123,2]
[422187685,1778665842000,-1000.0,0.00024708,2]
[422187687,1778665842000,-1000.0,0.00024708,2]
[422187680,1778665842000,-496.38,0.00024512,2]
[422187697,1778665842000,-150.0,0.00024711,2]
[422187691,1778665842000,-1000.0,0.00024708,2]
[422187688,1778665842000,-1000.0,0.00024708,2]
[422187681,1778665842000,-496.39,0.00024512,2]
[422187698,1778665842000,-150.0,0.00024711,2]
[422187683,1778665842000,-151.0,0.00024658,2]
[422187686,1778665842000,-1000.0,0.00024708,2]
[422187682,1778665842000,-187.15,0.00024658,2]
[422187679,1778665842000,-496.38,0.00024512,2]
[422187684,1778665842000,-176.78,0.00024658,2]
[422187775,1778665843000,-327.69559374,0.00025844,2]
[422187777,1778665843000,-457.89181688,0.00025844,2]
[422187764,1778665843000,-176.78,0.00025667,7]
[422187760,1778665843000,-850.0,0.00025402,2]
[422187758,1778665843000,-850.0,0.00025402,2]
[422187756,1778665843000,-850.0,0.00025402,2]
[422187762,1778665843000,-158.24360289,0.00025438,2]
[422187761,1778665843000,-372.0,0.00025402,2]
[422187757,1778665843000,-850.0,0.00025402,2]
[422187755,1778665843000,-850.0,0.00025402,2]
[422187765,1778665843000,-6686.98,0.00025786,2]
[422187759,1778665843000,-850.0,0.00025402,2]
[422187763,1778665843000,-176.78,0.00025523,2]
[422187781,1778665843000,-198.68,0.00026028,2]
[422187766,1778665843000,-591.2,0.00025786,2]
[422187770,1778665843000,-176.78,0.00025811,30]
[422187767,1778665843000,-329.35,0.00025786,2]
[422187769,1778665843000,-383.89,0.000258,7]
[422187768,1778665843000,-1824.53,0.00025786,2]
[422187773,1778665843000,-942.25258412,0.00025844,2]
[422187780,1778665843000,-550.0,0.00026,2]
[422187783,1778665843000,-559.29,0.0002603,30]
[422187779,1778665843000,-176.78,0.00025955,2]
[422187782,1778665843000,-198.7,0.00026028,2]
[422187778,1778665843000,-414.17785133,0.00025844,2]
[422187751,1778665843000,-176.78,0.00025378,30]
[422187771,1778665843000,-2721.62,0.00025822,7]
[422187754,1778665843000,-850.0,0.00025402,2]
[422187784,1778665843000,-238.57,0.00026032,2]
[422187752,1778665843000,-850.0,0.00025402,2]
[422187727,1778665843000,-150.0,0.00025007,2]
[422187730,1778665843000,-150.0,0.00025007,2]
[422187726,1778665843000,-150.0,0.00025007,2]
[422187725,1778665843000,-1994.0,0.00025,2]
[422187728,1778665843000,-150.0,0.00025007,2]
[422187729,1778665843000,-150.0,0.00025007,2]
[422187733,1778665843000,-625.0,0.00025078,2]
[422187732,1778665843000,-203.0,0.00025007,2]
[422187731,1778665843000,-150.0,0.00025007,2]
[422187734,1778665843000,-926.0,0.00025078,2]
[422187735,1778665843000,-1353.0,0.00025078,2]
[422187736,1778665843000,-3541.0,0.00025078,2]
[422187753,1778665843000,-850.0,0.00025402,2]
[422187737,1778665843000,-1269.0,0.00025078,2]
[422187749,1778665843000,-300.0,0.00025254,2]
[422187741,1778665843000,-176.78,0.00025234,7]
[422187742,1778665843000,-300.0,0.00025254,2]
[422187738,1778665843000,-1223.0,0.00025078,2]
[422187740,1778665843000,-1397.0,0.00025171,5]
[422187743,1778665843000,-300.0,0.00025254,2]
[422187744,1778665843000,-300.0,0.00025254,2]
[422187746,1778665843000,-300.0,0.00025254,2]
[422187747,1778665843000,-300.0,0.00025254,2]
[422187748,1778665843000,-300.0,0.00025254,2]
[422187745,1778665843000,-300.0,0.00025254,2]
[422187750,1778665843000,-437.0,0.00025254,2]
[422187739,1778665843000,-176.78,0.0002509,2]
[422187796,1778665843000,-198.7,0.00026085,2]
[422187843,1778665843000,-443.18,0.00026261,2]
[422187788,1778665843000,-157.14,0.00026049,2]
[422187818,1778665843000,-198.7,0.00026172,7]
[422187820,1778665843000,-237.03,0.00026174,7]
[422187819,1778665843000,-238.57,0.00026174,7]
[422187832,1778665843000,-238.57,0.00026232,7]
[422187822,1778665843000,-443.18,0.00026176,7]
[422187821,1778665843000,-443.17,0.00026176,7]
[422187824,1778665843000,-198.68,0.000262,2]
[422187826,1778665843000,-238.57,0.00026203,2]
[422187830,1778665843000,-198.68,0.00026229,7]
[422187831,1778665843000,-198.7,0.00026229,7]
[422187823,1778665843000,-157.14,0.00026199,7]
[422187825,1778665843000,-198.7,0.000262,2]
[422187817,1778665843000,-198.68,0.00026172,7]
[422187828,1778665843000,-443.17,0.00026204,2]
[422187833,1778665843000,-237.03,0.00026232,7]
[422187838,1778665843000,-198.68,0.00026258,2]
[422187834,1778665843000,-443.17,0.00026233,7]
[422187842,1778665843000,-443.17,0.00026261,2]
[422187839,1778665843000,-198.7,0.00026258,2]
[422187835,1778665843000,-443.18,0.00026233,7]
[422187836,1778665843000,-157.14,0.00026236,30]
[422187837,1778665843000,-176.78,0.00026243,30]
[422187844,1778665843000,-157.14,0.00026274,2]
[422187840,1778665843000,-238.57,0.0002626,2]
[422187841,1778665843000,-237.03,0.0002626,2]
[422187794,1778665843000,-443.18,0.00026062,7]
[422187829,1778665843000,-443.18,0.00026204,2]
[422187816,1778665843000,-157.14,0.00026161,2]
[422187827,1778665843000,-237.03,0.00026203,2]
[422187811,1778665843000,-198.7,0.00026143,7]
[422187787,1778665843000,-443.18,0.00026034,2]
[422187814,1778665843000,-443.17,0.00026147,7]
[422187789,1778665843000,-198.68,0.00026056,7]
[422187795,1778665843000,-198.68,0.00026085,2]
[422187790,1778665843000,-198.7,0.00026056,7]
[422187786,1778665843000,-443.17,0.00026034,2]
[422187785,1778665843000,-237.03,0.00026032,2]
[422187792,1778665843000,-237.03,0.0002606,7]
[422187791,1778665843000,-238.57,0.0002606,7]
[422187798,1778665843000,-238.57,0.00026089,2]
[422187808,1778665843000,-443.18,0.00026119,2]
[422187809,1778665843000,-157.14,0.00026124,30]
[422187797,1778665843000,-157.14,0.00026086,7]
[422187793,1778665843000,-443.17,0.00026062,7]
[422187800,1778665843000,-443.17,0.0002609,2]
[422187815,1778665843000,-443.18,0.00026147,7]
[422187813,1778665843000,-237.03,0.00026146,7]
[422187812,1778665843000,-238.57,0.00026146,7]
[422187810,1778665843000,-198.68,0.00026143,7]
[422187807,1778665843000,-443.17,0.00026119,2]
[422187805,1778665843000,-238.57,0.00026117,2]
[422187806,1778665843000,-237.03,0.00026117,2]
[422187804,1778665843000,-198.7,0.00026114,2]
[422187802,1778665843000,-176.78,0.00026099,7]
[422187799,1778665843000,-237.03,0.00026089,2]
[422187801,1778665843000,-443.18,0.0002609,2]
[422187803,1778665843000,-198.68,0.00026114,2]
[422187897,1778665844000,-443.17,0.00026489,7]
[422187884,1778665844000,-443.17,0.00026432,2]
[422187887,1778665844000,-237.03,0.00026432,2]
[422187886,1778665844000,-443.18,0.00026432,2]
[422187888,1778665844000,-238.57,0.0002646,2]
[422187885,1778665844000,-238.57,0.00026432,2]
[422187881,1778665844000,-157.14,0.00026424,7]
[422187873,1778665844000,-157.14,0.00026387,2]
[422187880,1778665844000,-443.18,0.00026404,7]
[422187882,1778665844000,-198.68,0.00026431,2]
[422187877,1778665844000,-238.57,0.00026403,7]
[422187894,1778665844000,-157.14,0.00026462,30]
[422187883,1778665844000,-198.7,0.00026431,2]
[422187889,1778665844000,-198.68,0.0002646,2]
[422187904,1778665844000,-443.17,0.00026518,7]
[422187891,1778665844000,-237.03,0.0002646,2]
[422187890,1778665844000,-198.7,0.0002646,2]
[422187896,1778665844000,-198.7,0.00026488,7]
[422187895,1778665844000,-198.68,0.00026488,7]
[422187893,1778665844000,-443.18,0.00026461,2]
[422187909,1778665844000,-157.14,0.00026537,7]
[422187899,1778665844000,-443.18,0.00026489,7]
[422187898,1778665844000,-238.57,0.00026489,7]
[422187902,1778665844000,-198.68,0.00026517,7]
[422187901,1778665844000,-157.14,0.000265,2]
[422187903,1778665844000,-198.7,0.00026517,7]
[422187900,1778665844000,-237.03,0.00026489,7]
[422187908,1778665844000,-176.78,0.00026532,7]
[422187879,1778665844000,-443.17,0.00026404,7]
[422187892,1778665844000,-443.17,0.00026461,2]
[422187878,1778665844000,-237.03,0.00026403,7]
[422187847,1778665844000,-238.57,0.00026289,2]
[422187875,1778665844000,-198.68,0.00026402,7]
[422187905,1778665844000,-238.57,0.00026518,7]
[422187846,1778665844000,-198.7,0.00026287,2]
[422187857,1778665844000,-237.03,0.00026317,7]
[422187845,1778665844000,-198.68,0.00026287,2]
[422187858,1778665844000,-443.17,0.00026318,7]
[422187848,1778665844000,-237.03,0.00026289,2]
[422187856,1778665844000,-238.57,0.00026317,7]
[422187853,1778665844000,-589.42660551,0.00026315,26]
[422187850,1778665844000,-443.18,0.0002629,2]
[422187852,1778665844000,-157.14,0.00026312,7]
[422187854,1778665844000,-198.68,0.00026316,7]
[422187855,1778665844000,-198.7,0.00026316,7]
[422187849,1778665844000,-443.17,0.0002629,2]
[422187851,1778665844000,-712.7,0.00026296,2]
[422187859,1778665844000,-443.18,0.00026318,7]
[422187861,1778665844000,-198.7,0.00026344,7]
[422187862,1778665844000,-238.57,0.00026346,7]
[422187863,1778665844000,-237.03,0.00026346,7]
[422187860,1778665844000,-198.68,0.00026344,7]
[422187864,1778665844000,-443.17,0.00026347,7]
[422187868,1778665844000,-198.7,0.00026373,2]
[422187866,1778665844000,-157.14,0.00026349,30]
[422187867,1778665844000,-198.68,0.00026373,2]
[422187871,1778665844000,-443.18,0.00026375,2]
[422187869,1778665844000,-443.17,0.00026375,2]
[422187865,1778665844000,-443.18,0.00026347,7]
[422187870,1778665844000,-238.57,0.00026375,2]
[422187872,1778665844000,-237.03,0.00026375,2]
[422187874,1778665844000,-176.78,0.00026388,2]
[422187876,1778665844000,-198.7,0.00026402,7]
[422187906,1778665844000,-443.18,0.00026518,7]
[422187963,1778665844000,-699.0,0.00027397,2]
[422187910,1778665844000,-443.17,0.00026546,2]
[422187947,1778665844000,-176.78,0.00027253,2]
[422187942,1778665844000,-176.78,0.00026964,7]
[422187944,1778665844000,-2323.275753,0.0002701,2]
[422187945,1778665844000,-176.78,0.00027108,30]
[422187949,1778665844000,-18693.59605216,0.00027337,2]
[422187946,1778665844000,-759.82447879,0.00027116,2]
[422187938,1778665844000,-1285.84613209,0.00026849,5]
[422187952,1778665844000,-176.97,0.00027397,7]
[422187973,1778665844000,-699.0,0.00027397,2]
[422187951,1778665844000,-200.0,0.0002739,2]
[422187961,1778665844000,-699.0,0.00027397,2]
[422187953,1778665844000,-200.0,0.00027397,2]
[422187960,1778665844000,-519.4497641,0.00027397,2]
[422187962,1778665844000,-150.0,0.00027397,2]
[422187954,1778665844000,-699.0,0.00027397,2]
[422187955,1778665844000,-699.0,0.00027397,2]
[422187958,1778665844000,-500.0,0.00027397,2]
[422187956,1778665844000,-500.0,0.00027397,2]
[422187957,1778665844000,-699.0,0.00027397,2]
[422187967,1778665844000,-699.0,0.00027397,2]
[422187965,1778665844000,-699.0,0.00027397,2]
[422187971,1778665844000,-699.0,0.00027397,2]
[422187968,1778665844000,-699.0,0.00027397,2]
[422187970,1778665844000,-699.0,0.00027397,2]
[422187964,1778665844000,-699.0,0.00027397,2]
[422187969,1778665844000,-699.0,0.00027397,2]
[422187966,1778665844000,-699.0,0.00027397,2]
[422187972,1778665844000,-699.0,0.00027397,2]
[422187907,1778665844000,-237.03,0.00026518,7]
[422187948,1778665844000,-208.42886955,0.0002729,2]
[422187943,1778665844000,-2000.0,0.00027,2]
[422187959,1778665844000,-699.0,0.00027397,2]
[422187950,1778665844000,-200.0,0.0002739,2]
[422187941,1778665844000,-192.996,0.0002694,15]
[422187921,1778665844000,-198.74,0.00026575,7]
[422187911,1778665844000,-238.57,0.00026546,2]
[422187912,1778665844000,-198.68,0.00026546,2]
[422187914,1778665844000,-198.7,0.00026546,2]
[422187915,1778665844000,-237.03,0.00026546,2]
[422187917,1778665844000,-443.2,0.00026575,7]
[422187913,1778665844000,-443.18,0.00026546,2]
[422187916,1778665844000,-157.23,0.00026575,30]
[422187919,1778665844000,-198.84,0.00026575,7]
[422187922,1778665844000,-237.11,0.00026575,7]
[422187918,1778665844000,-238.73,0.00026575,7]
[422187924,1778665844000,-176.78,0.00026676,30]
[422187936,1778665844000,-1032.98308768,0.00026849,5]
[422187920,1778665844000,-443.36,0.00026575,7]
[422187934,1778665844000,-1059.33037273,0.00026849,5]
[422187940,1778665844000,-1904.277,0.0002694,15]
[422187925,1778665844000,-155.0,0.00026818,2]
[422187939,1778665844000,-150.0,0.00026849,2]
[422187937,1778665844000,-1068.36555506,0.00026849,5]
[422187933,1778665844000,-1026.17774568,0.00026849,5]
[422187930,1778665844000,-1001.74400779,0.00026849,5]
[422187931,1778665844000,-1067.3682264,0.00026849,5]
[422187932,1778665844000,-1115.56947901,0.00026849,5]
[422187929,1778665844000,-1130.54684103,0.00026849,5]
[422187928,1778665844000,-150.0,0.00026849,2]
[422187927,1778665844000,-150.0,0.00026849,2]
[422187935,1778665844000,-1026.11420258,0.00026849,5]
[422187926,1778665844000,-176.78,0.0002682,2]
[422187923,1778665844000,-413317.58210801,0.000266,2]
[422188004,1778665845000,-346.686202,0.00027397,2]
[422187997,1778665845000,-257.204248,0.00027397,2]
[422187998,1778665845000,-151.0,0.00027397,2]
[422187999,1778665845000,-257.204248,0.00027397,2]
[422188001,1778665845000,-346.686202,0.00027397,2]
[422188000,1778665845000,-238.575526,0.00027397,2]
[422187993,1778665845000,-257.204248,0.00027397,2]
[422188006,1778665845000,-263.298087,0.00027397,2]
[422188008,1778665845000,-3842.4,0.00027397,10]
[422188003,1778665845000,-346.686202,0.00027397,2]
[422188005,1778665845000,-4610.88,0.00027397,10]
[422188007,1778665845000,-263.298087,0.00027397,2]
[422188009,1778665845000,-263.298087,0.00027397,2]
[422188010,1778665845000,-263.298087,0.00027397,2]
[422188011,1778665845000,-3202.0,0.00027397,10]
[422187992,1778665845000,-374.212742,0.00027397,2]
[422188014,1778665845000,-1652.97,0.000274,14]
[422188002,1778665845000,-346.686202,0.00027397,2]
[422187994,1778665845000,-151.0,0.00027397,2]
[422187978,1778665845000,-699.0,0.00027397,2]
[422187996,1778665845000,-151.0,0.00027397,2]
[422188015,1778665845000,-28415.35,0.000274,7]
[422187975,1778665845000,-699.0,0.00027397,2]
[422187974,1778665845000,-699.0,0.00027397,2]
[422187977,1778665845000,-699.0,0.00027397,2]
[422187976,1778665845000,-699.0,0.00027397,2]
[422187979,1778665845000,-699.0,0.00027397,2]
[422187980,1778665845000,-699.0,0.00027397,2]
[422187984,1778665845000,-404.56,0.00027397,2]
[422187995,1778665845000,-257.204248,0.00027397,2]
[422187982,1778665845000,-683.58,0.00027397,30]
[422187981,1778665845000,-704.04223233,0.00027397,2]
[422187986,1778665845000,-151.14608712,0.00027397,2]
[422187990,1778665845000,-374.212742,0.00027397,2]
[422187991,1778665845000,-374.212742,0.00027397,2]
[422187985,1778665845000,-205.07880627,0.00027397,7]
[422187987,1778665845000,-300.0,0.00027397,2]
[422187988,1778665845000,-158.075942,0.00027397,2]
[422187989,1778665845000,-374.212742,0.00027397,2]
[422187983,1778665845000,-1500.0,0.00027397,2]
[422188016,1778665845000,-499.00802989,0.0002741,2]
[422188017,1778665845000,-383.89,0.000276,7]
[422188013,1778665845000,-154.35,0.000274,7]
[422188038,1778665845000,-6583.13381897,0.00028,2]
[422188041,1778665845000,-185.5,0.00028,2]
[422188040,1778665845000,-185.5,0.00028,2]
[422188043,1778665845000,-926.0,0.00028078,2]
[422188044,1778665845000,-1353.0,0.00028078,2]
[422188042,1778665845000,-625.0,0.00028078,2]
[422188045,1778665845000,-3541.0,0.00028078,2]
[422188046,1778665845000,-1269.0,0.00028078,2]
[422188037,1778665845000,-232.0,0.00027912,2]
[422188047,1778665845000,-1223.0,0.00028078,2]
[422188048,1778665845000,-250.0,0.0002808,2]
[422188052,1778665845000,-250.0,0.0002808,2]
[422188051,1778665845000,-250.0,0.0002808,2]
[422188053,1778665845000,-250.0,0.0002808,2]
[422188054,1778665845000,-250.0,0.0002808,2]
[422188056,1778665845000,-150.0,0.0002811,2]
[422188055,1778665845000,-255.0,0.0002808,2]
[422188012,1778665845000,-150.52331777,0.00027397,2]
[422188049,1778665845000,-250.0,0.0002808,2]
[422188039,1778665845000,-600.0,0.00028,2]
[422188050,1778665845000,-250.0,0.0002808,2]
[422188035,1778665845000,-150.0,0.00027912,2]
[422188036,1778665845000,-259.0,0.00027912,2]
[422188018,1778665845000,-275.0,0.0002763,2]
[422188019,1778665845000,-200.0,0.00027671,2]
[422188021,1778665845000,-2721.62,0.00027763,7]
[422188023,1778665845000,-250.0,0.00027864,2]
[422188020,1778665845000,-150.0,0.00027711,2]
[422188024,1778665845000,-250.0,0.00027864,2]
[422188025,1778665845000,-250.0,0.00027864,2]
[422188022,1778665845000,-500.0,0.000278,7]
[422188027,1778665845000,-250.0,0.00027864,2]
[422188029,1778665845000,-250.0,0.00027864,2]
[422188028,1778665845000,-250.0,0.00027864,2]
[422188032,1778665845000,-180.0,0.00027864,2]
[422188030,1778665845000,-250.0,0.00027864,2]
[422188031,1778665845000,-250.0,0.00027864,2]
[422188034,1778665845000,-150.0,0.00027912,2]
[422188026,1778665845000,-250.0,0.00027864,2]
[422188033,1778665845000,-150.0,0.00027912,2]
[422188106,1778665846000,-250.0,0.00028417,2]
[422188095,1778665846000,-300.0,0.00028336,2]
[422188096,1778665846000,-300.0,0.00028336,2]
[422188092,1778665846000,-300.0,0.00028336,2]
[422188094,1778665846000,-300.0,0.00028336,2]
[422188089,1778665846000,-300.0,0.00028333,2]
[422188090,1778665846000,-232.0,0.00028333,2]
[422188091,1778665846000,-300.0,0.00028336,2]
[422188088,1778665846000,-300.0,0.00028333,2]
[422188100,1778665846000,-150.0,0.00028368,2]
[422188085,1778665846000,-300.0,0.00028333,2]
[422188093,1778665846000,-300.0,0.00028336,2]
[422188097,1778665846000,-300.0,0.00028336,2]
[422188107,1778665846000,-250.0,0.00028417,2]
[422188099,1778665846000,-169.0,0.00028336,2]
[422188102,1778665846000,-250.0,0.00028417,2]
[422188101,1778665846000,-154.0,0.00028368,2]
[422188108,1778665846000,-250.0,0.00028417,2]
[422188105,1778665846000,-250.0,0.00028417,2]
[422188103,1778665846000,-250.0,0.00028417,2]
[422188104,1778665846000,-250.0,0.00028417,2]
[422188109,1778665846000,-250.0,0.00028417,2]
[422188110,1778665846000,-259.0,0.00028417,2]
[422188111,1778665846000,-154.35,0.000285,7]
[422188112,1778665846000,-1652.97,0.000285,14]
[422188086,1778665846000,-300.0,0.00028333,2]
[422188098,1778665846000,-300.0,0.00028336,2]
[422188087,1778665846000,-300.0,0.00028333,2]
[422188062,1778665846000,-150.0,0.00028214,2]
[422188080,1778665846000,-169.0,0.00028304,2]
[422188118,1778665846000,-159.0,0.00028826,3]
[422188057,1778665846000,-150.0,0.0002811,2]
[422188058,1778665846000,-213.0,0.0002811,2]
[422188059,1778665846000,-150.0,0.00028192,2]
[422188061,1778665846000,-243.0,0.00028213,2]
[422188060,1778665846000,-249.0,0.00028204,2]
[422188071,1778665846000,-400.0,0.00028304,2]
[422188070,1778665846000,-233.0,0.00028295,2]
[422188069,1778665846000,-150.0,0.00028295,2]
[422188063,1778665846000,-150.0,0.00028214,2]
[422188064,1778665846000,-150.0,0.00028214,2]
[422188066,1778665846000,-712.7,0.00028267,2]
[422188084,1778665846000,-300.0,0.00028333,2]
[422188068,1778665846000,-150.0,0.00028295,2]
[422188067,1778665846000,-150.0,0.00028295,2]
[422188083,1778665846000,-300.0,0.00028333,2]
[422188073,1778665846000,-400.0,0.00028304,2]
[422188072,1778665846000,-400.0,0.00028304,2]
[422188074,1778665846000,-400.0,0.00028304,2]
[422188075,1778665846000,-400.0,0.00028304,2]
[422188076,1778665846000,-400.0,0.00028304,2]
[422188078,1778665846000,-400.0,0.00028304,2]
[422188077,1778665846000,-400.0,0.00028304,2]
[422188079,1778665846000,-400.0,0.00028304,2]
[422188082,1778665846000,-300.0,0.00028333,2]
[422188081,1778665846000,-300.0,0.00028333,2]
[422188065,1778665846000,-250.0,0.00028214,2]
[422188116,1778665846000,-276.303252,0.00028767,7]
[422188161,1778665846000,-267.55393,0.00030137,7]
[422188113,1778665846000,-28415.35,0.000287,7]
[422188154,1778665846000,-267.55393,0.00030137,7]
[422188148,1778665846000,-449.088494,0.00030137,7]
[422188147,1778665846000,-449.088494,0.00030137,7]
[422188146,1778665846000,-806.26185204,0.00030137,2]
[422188149,1778665846000,-449.088494,0.00030137,7]
[422188151,1778665846000,-449.088494,0.00030137,7]
[422188145,1778665846000,-200.0,0.00030137,2]
[422188163,1778665846000,-177.916806,0.00030137,7]
[422188164,1778665846000,-276.303252,0.00030137,7]
[422188158,1778665846000,-267.55393,0.00030137,7]
[422188160,1778665846000,-157.543547,0.00030137,7]
[422188156,1778665846000,-177.916806,0.00030137,7]
[422188144,1778665846000,-26018.1756246,0.00030137,2]
[422188166,1778665846000,-276.303252,0.00030137,7]
[422188162,1778665846000,-177.916806,0.00030137,7]
[422188157,1778665846000,-162.157036,0.00030137,7]
[422188165,1778665846000,-276.303252,0.00030137,7]
[422188168,1778665846000,-712.7,0.00030239,2]
[422188173,1778665846000,-473.418041,0.00030481,7]
[422188171,1778665846000,-473.418041,0.00030481,7]
[422188174,1778665846000,-765.442738,0.00030481,7]
[422188169,1778665846000,-1158.74048305,0.00030481,2]
[422188167,1778665846000,-276.303252,0.00030137,7]
[422188175,1778665846000,-473.418041,0.00030481,7]
[422188170,1778665846000,-4906.11146519,0.00030481,2]
[422188114,1778665846000,-276.303252,0.00028767,7]
[422188159,1778665846000,-177.916806,0.00030137,7]
[422188142,1778665846000,-650.0,0.0003,2]
[422188172,1778665846000,-765.442738,0.00030481,7]
[422188153,1778665846000,-151.0,0.00030137,7]
[422188155,1778665846000,-267.55393,0.00030137,7]
[422188117,1778665846000,-276.303252,0.00028767,7]
[422188120,1778665846000,-2548.0096516,0.00029223,2]
[422188130,1778665846000,-238.78041857,0.00029667,3]
[422188119,1778665846000,-150.0,0.00029223,2]
[422188124,1778665846000,-1506.00021504,0.00029223,2]
[422188121,1778665846000,-150.0,0.00029223,2]
[422188122,1778665846000,-17219.0241071,0.00029223,2]
[422188123,1778665846000,-150.0,0.00029223,2]
[422188126,1778665846000,-5023.6939124,0.00029543,3]
[422188128,1778665846000,-150.0,0.00029601,2]
[422188129,1778665846000,-153.0,0.00029667,3]
[422188127,1778665846000,-2021.72650477,0.00029596,2]
[422188115,1778665846000,-276.303252,0.00028767,7]
[422188140,1778665846000,-1360.0,0.00029876,2]
[422188131,1778665846000,-2721.62,0.00029703,7]
[422188132,1778665846000,-1300.100108,0.00029721,2]
[422188133,1778665846000,-15113.7531379,0.00029799,2]
[422188135,1778665846000,-1652.97,0.000298,14]
[422188134,1778665846000,-154.35,0.000298,7]
[422188139,1778665846000,-1556.24769101,0.00029876,2]
[422188136,1778665846000,-28415.35,0.000298,7]
[422188125,1778665846000,-235.0,0.00029445,2]
[422188141,1778665846000,-169.3,0.00029986,3]
[422188137,1778665846000,-383.89,0.000298,7]
[422188138,1778665846000,-8666.5241548,0.00029831,2]
[422188143,1778665846000,-199.0,0.0003,14]
[422188212,1778665847000,-151.0,0.000308,7]
[422188239,1778665847000,-290.336006,0.00031078,7]
[422188214,1778665847000,-735.44524001,0.000308,2]
[422188208,1778665847000,-257.204248,0.000308,7]
[422188211,1778665847000,-151.0,0.000308,7]
[422188205,1778665847000,-151.0,0.000308,7]
[422188209,1778665847000,-151.0,0.000308,7]
[422188213,1778665847000,-151.0,0.000308,7]
[422188207,1778665847000,-151.0,0.000308,7]
[422188217,1778665847000,-2581.95357119,0.000308,2]
[422188216,1778665847000,-735.44523998,0.000308,2]
[422188215,1778665847000,-735.44523998,0.000308,2]
[422188225,1778665847000,-457.89181688,0.00031013,2]
[422188230,1778665847000,-3541.0,0.00031078,2]
[422188218,1778665847000,-2581.95357117,0.000308,2]
[422188222,1778665847000,-277.37305507,0.00031013,2]
[422188226,1778665847000,-269.58132942,0.00031013,2]
[422188229,1778665847000,-1353.0,0.00031078,2]
[422188223,1778665847000,-327.69559374,0.00031013,2]
[422188228,1778665847000,-710.029,0.00031078,2]
[422188219,1778665847000,-152.0,0.00031,3]
[422188220,1778665847000,-942.25258412,0.00031013,2]
[422188224,1778665847000,-192.92900757,0.00031013,2]
[422188227,1778665847000,-621.204,0.00031078,2]
[422188234,1778665847000,-374.212742,0.00031078,7]
[422188206,1778665847000,-257.204248,0.000308,7]
[422188221,1778665847000,-554.74611013,0.00031013,2]
[422188203,1778665847000,-158.0,0.00030679,30]
[422188190,1778665847000,-664.623136,0.00030481,7]
[422188193,1778665847000,-664.623136,0.00030481,7]
[422188236,1778665847000,-374.212742,0.00031078,7]
[422188178,1778665847000,-765.442738,0.00030481,7]
[422188179,1778665847000,-158.702438,0.00030481,7]
[422188177,1778665847000,-473.418041,0.00030481,7]